fUST/lending_fUST_20250115
["ID","MTS","AMOUNT","RATE_DAILY","PERIOD"]
[348989506,1736921432743,-500.0,0.00019178,2]
[348989509,1736921432753,-517.12580551,0.00019178,2]
[348989512,1736921432763,-447.23663922,0.00019178,2]
[348989515,1736921432770,-500.0,0.00019178,2]
[348989518,1736921432777,-500.0,0.00019178,2]
[348989521,1736921432786,-500.0,0.00019178,2]
[348989524,1736921432795,-500.0,0.00019178,2]
[348989527,1736921432804,-183.56299282,0.00019178,2]
[348989530,1736921432813,-500.0,0.00019178,2]
[348989533,1736921432823,-500.0,0.00019178,2]
[348989536,1736921432833,-599.98397438,0.00019178,2]
[348989539,1736921432842,-500.0,0.00019178,2]
[348989542,1736921432851,-649.900688,0.00019178,2]
[348989545,1736921432860,-500.0,0.00019178,2]
[348989548,1736921432870,-500.0,0.00019178,2]
[348989551,1736921432879,-500.0,0.00019178,2]
[348989554,1736921432889,-500.0,0.00019178,2]
[348989556,1736921432899,-500.0,0.00019178,2]
[348989558,1736921432908,-360.03004212,0.00019178,2]
[348989560,1736921432917,-157.39471772,0.00019178,2]
[348989562,1736921432927,-500.0,0.00019178,2]
[348989564,1736921432936,-515.82948449,0.00019178,2]
[348989566,1736921432945,-500.0,0.00019178,2]
[348989568,1736921432955,-500.0,0.00019178,2]
[348989570,1736921432964,-500.0,0.00019178,2]
[348989572,1736921432973,-500.0,0.00019178,2]
[348989574,1736921432983,-623.05378042,0.00019178,2]
[348989576,1736921432992,-500.0,0.00019178,2]
[348989578,1736921433001,-500.0,0.00019178,2]
[348989580,1736921433011,-500.0,0.00019178,2]
[348989582,1736921433020,-500.0,0.00019178,2]
[348989584,1736921433030,-508.33576002,0.00019178,2]
[348989586,1736921433039,-500.0,0.00019178,2]
[348989588,1736921433049,-500.0,0.00019178,2]
[348989590,1736921433059,-504.81764054,0.00019178,2]
[348989592,1736921433068,-539.21,0.00019178,2]
[348989594,1736921433078,-500.0,0.00019178,2]
[348989596,1736921433088,-500.0,0.00019178,2]
[348989598,1736921433097,-583.73539618,0.00019178,2]
[348989600,1736921433107,-500.0,0.00019178,2]
[348989602,1736921433117,-507.37606641,0.00019178,2]
[348989604,1736921433126,-500.0,0.00019178,2]
[348989606,1736921433136,-500.0,0.00019178,2]
[348989608,1736921433146,-500.0,0.00019178,2]
[348989611,1736921433156,-500.0,0.00019178,2]
[348989612,1736921433166,-4985.93,0.00019178,2]
[348989614,1736921433176,-500.0,0.00019178,2]
[348989616,1736921433184,-500.0,0.00019178,2]
[348989618,1736921433194,-500.0,0.00019178,2]
[348989621,1736921433204,-500.0,0.00019178,2]
[348989623,1736921433214,-500.0,0.00019178,2]
[348989625,1736921433223,-500.0,0.00019178,2]
[348989626,1736921433232,-500.0,0.00019178,2]
[348989629,1736921433242,-500.0,0.00019178,2]
[348989630,1736921433252,-500.0,0.00019178,2]
[348989633,1736921433261,-500.0,0.00019178,2]
[348989635,1736921433279,-198.73,0.00019178,2]
[348989637,1736921433290,-500.0,0.00019178,2]
[348989639,1736921433300,-500.0,0.00019178,2]
[348989642,1736921433310,-500.0,0.00019178,2]
[348989643,1736921433320,-500.0,0.00019178,2]
[348989646,1736921433330,-500.0,0.00019178,2]
[348989648,1736921433339,-500.0,0.00019178,2]
[348989650,1736921433350,-500.0,0.00019178,2]
[348989652,1736921433360,-350.28562807,0.00019178,2]
[348989654,1736921433370,-500.0,0.00019178,2]
[348989656,1736921433380,-500.0,0.00019178,2]
[348989657,1736921433389,-500.0,0.00019178,2]
[348989658,1736921433399,-511.89,0.00019178,2]
[348989659,1736921433410,-1246.44,0.00019178,2]
[348989660,1736921433420,-547.83,0.00019178,2]
[348989661,1736921433430,-500.0,0.00019178,2]
[348989662,1736921433440,-500.0,0.00019178,2]
[348989663,1736921433450,-500.0,0.00019178,2]
[348989664,1736921433460,-997.26,0.00019178,2]
[348989665,1736921433471,-500.0,0.00019178,2]
[348989666,1736921433480,-684.73,0.00019178,2]
[348989667,1736921433491,-1337.81,0.00019178,2]
[348989668,1736921433500,-500.0,0.00019178,2]
[348989669,1736921433510,-500.0,0.00019178,2]
[348989670,1736921433519,-500.0,0.00019178,2]
[348989671,1736921433529,-500.0,0.00019178,2]
[348989672,1736921433542,-500.0,0.00019178,2]
[348989675,1736921433552,-500.0,0.00019178,2]
[348989677,1736921433561,-500.0,0.00019178,2]
[348989678,1736921433571,-1509.14,0.00019178,2]
[348989681,1736921433580,-500.0,0.00019178,2]
[348989682,1736921433590,-804.34,0.00019178,2]
[348989684,1736921433599,-500.0,0.00019178,2]
[348989687,1736921433609,-500.0,0.00019178,2]
[348989689,1736921433619,-168.887835,0.00019178,2]
[348989691,1736921433629,-167.647135,0.00019178,2]
[348989693,1736921433639,-153.0,0.000192,2]
[348989695,1736921433651,-610.96849,0.00019315,3]
[348989697,1736921433662,-500.0,0.00019315,3]
[348989699,1736921433672,-500.0,0.00019315,3]
[348989701,1736921433682,-649.54347365,0.00019315,3]
[348989703,1736921433692,-500.0,0.00019315,3]
[348989705,1736921433702,-500.0,0.00019315,3]
[348989707,1736921433711,-500.0,0.00019315,3]
[348989709,1736921433721,-500.0,0.00019315,2]
[348989711,1736921433731,-500.0,0.00019315,3]
[348989713,1736921433741,-539.21,0.00019315,3]
[348989715,1736921433750,-500.0,0.00019315,3]
[348989717,1736921433760,-1425.95214208,0.00019315,3]
[348989720,1736921433776,-3559.97785792,0.00019315,3]
[348989722,1736921433786,-500.0,0.00019315,3]
[348989724,1736921433796,-500.0,0.00019315,3]
[348989726,1736921433806,-500.0,0.00019315,3]
[348989728,1736921433815,-500.0,0.00019315,3]
[348989729,1736921433824,-500.0,0.00019315,3]
[348989731,1736921433833,-500.0,0.00019315,3]
[348989733,1736921433843,-500.0,0.00019315,3]
[348989735,1736921433853,-500.0,0.00019315,3]
[348989737,1736921433862,-500.0,0.00019315,3]
[348989739,1736921433872,-500.0,0.00019315,3]
[348989740,1736921433881,-500.0,0.00019315,3]
[348989742,1736921433891,-500.0,0.00019315,3]
[348989744,1736921433900,-500.0,0.00019315,3]
[348989746,1736921433912,-151.0,0.00019315,2]
[348989748,1736921433922,-511.89,0.00019315,3]
[348989750,1736921433930,-1246.44,0.00019315,3]
[348989752,1736921433940,-547.83,0.00019315,3]
[348989754,1736921433950,-500.0,0.00019315,3]
[348989756,1736921433960,-500.0,0.00019315,3]
[348989758,1736921433970,-997.26,0.00019315,3]
[348989760,1736921433980,-356.008,0.00019315,2]
[348989761,1736921433990,-356.008,0.00019315,2]
[348989763,1736921434000,-500.0,0.00019315,3]
[348989765,1736921434010,-151.0,0.00019315,2]
[348989767,1736921434020,-151.0,0.00019315,2]
[348989769,1736921434030,-684.73,0.00019315,3]
[348989771,1736921434039,-165.712944,0.00019315,2]
[348989773,1736921434048,-165.712944,0.00019315,2]
[348989775,1736921434057,-1337.81,0.00019315,3]
[348989777,1736921434067,-500.0,0.00019315,3]
[348989778,1736921434076,-500.0,0.00019315,3]
[348989780,1736921434085,-500.0,0.00019315,3]
[348989782,1736921434095,-1509.14,0.00019315,2]
[348989784,1736921434105,-500.0,0.00019315,3]
[348989786,1736921434114,-804.34,0.00019315,3]
[348989788,1736921434123,-395.0,0.00019363,2]
[348989790,1736921434133,-307.5925595,0.000194,2]
[348989792,1736921434142,-308.504,0.00019414,2]
[348989794,1736921434152,-151.0,0.00019414,2]
[348989796,1736921434161,-151.0,0.00019414,2]
[348989798,1736921434171,-151.0,0.00019414,2]
[348989799,1736921434180,-250.83249764,0.00019451,2]
[348989801,1736921434189,-500.0,0.00019451,2]
[348989803,1736921434198,-500.0,0.00019452,3]
[348989805,1736921434207,-500.0,0.00019452,3]
[348989807,1736921434217,-365.22459926,0.00019452,3]
[348989809,1736921434226,-151.0,0.00019452,2]
[348989811,1736921434235,-151.0,0.00019452,2]
[348989812,1736921434244,-500.0,0.00019452,3]
[348989814,1736921434253,-357.758411,0.00019452,2]
[348989816,1736921434263,-357.758411,0.00019452,2]
[348989818,1736921434272,-151.0,0.00019452,2]
[348989820,1736921434282,-500.0,0.00019452,2]
[348989822,1736921434292,-500.0,0.00019452,3]
[348989824,1736921434301,-151.0,0.00019452,2]
[348989825,1736921434310,-196.115436,0.00019452,2]
[348989827,1736921434320,-196.115436,0.00019452,2]
[348989829,1736921434329,-539.21,0.00019452,3]
[348989831,1736921434339,-350.613162,0.00019452,2]
[348989833,1736921434349,-151.0,0.00019452,2]
[348989835,1736921434358,-350.613162,0.00019452,2]
[348989837,1736921434368,-256.454363,0.00019452,2]
[348989839,1736921434378,-256.454363,0.00019452,2]
[348989840,1736921434388,-4985.93,0.00019452,3]
[348989842,1736921434398,-500.0,0.00019452,3]
[348989855,1736921434527,-500.0,0.00019452,3]
[348989857,1736921434538,-174.14261028,0.00019452,3]
[348989859,1736921434548,-500.0,0.00019452,3]
[348989860,1736921434558,-500.0,0.00019452,3]
[348989862,1736921434567,-500.0,0.00019452,3]
[348989864,1736921434579,-601.38752275,0.00019452,3]
[348989866,1736921434589,-500.0,0.00019452,3]
[348989868,1736921434598,-500.0,0.00019452,3]
[348989870,1736921434608,-500.0,0.00019452,3]
[348989872,1736921434617,-500.0,0.00019452,3]
[348989874,1736921434628,-500.0,0.00019452,3]
[348989876,1736921434638,-500.0,0.00019452,3]
[348989878,1736921434649,-511.89,0.00019452,3]
[348989879,1736921434661,-1246.44,0.00019452,3]
[348989881,1736921434672,-547.83,0.00019452,3]
[348989884,1736921434686,-500.0,0.00019452,3]
[348989886,1736921434701,-500.0,0.00019452,3]
[348989888,1736921434712,-997.26,0.00019452,3]
[348989890,1736921434723,-500.0,0.00019452,3]
[348989892,1736921434736,-684.73,0.00019452,3]
[348989894,1736921434746,-1337.81,0.00019452,3]
[348989896,1736921434755,-267.0098632,0.00019452,3]
[348989897,1736921434765,-500.0,0.00019452,3]
[348989899,1736921434774,-500.0,0.00019452,3]
[348989901,1736921434784,-1509.14,0.00019452,2]
[348989903,1736921434793,-500.0,0.00019452,3]
[348989905,1736921434802,-804.34,0.00019452,3]
[348989907,1736921434811,-151.756403,0.00019589,2]
[348989909,1736921434820,-151.0,0.00019589,2]
[348989911,1736921434829,-500.0,0.00019589,3]
[348989913,1736921434839,-183.081458,0.00019589,2]
[348989915,1736921434848,-183.081458,0.00019589,2]
[348989916,1736921434857,-151.0,0.00019589,2]
[348989918,1736921434866,-500.0,0.00019589,3]
[348989920,1736921434875,-154.275786,0.00019589,2]
[348989922,1736921434884,-151.0,0.00019589,2]
[348989924,1736921434893,-151.0,0.00019589,2]
[348989926,1736921434903,-500.0,0.00019589,3]
[348989928,1736921434913,-357.758411,0.00019589,2]
[348989929,1736921434922,-357.758411,0.00019589,2]
[348989931,1736921434931,-164.400298,0.00019589,2]
[348989933,1736921434940,-500.0,0.00019589,2]
[348989935,1736921434949,-500.0,0.00019589,3]
[348989937,1736921434958,-151.0,0.00019589,2]
[348989939,1736921434967,-196.115436,0.00019589,2]
[348989941,1736921434976,-196.115436,0.00019589,2]
[348989943,1736921434987,-539.21,0.00019589,3]
[348989945,1736921434995,-350.613162,0.00019589,2]
[348989947,1736921435004,-151.0,0.00019589,2]
[348989949,1736921435013,-350.613162,0.00019589,2]
[348989951,1736921435022,-256.454363,0.00019589,2]
[348989953,1736921435031,-256.454363,0.00019589,2]
[348989955,1736921435043,-151.0,0.00019589,2]
[348989957,1736921435059,-4985.93,0.00019589,3]
[348989959,1736921435069,-500.0,0.00019589,3]
[348989960,1736921435077,-500.0,0.00019589,3]
[348989962,1736921435087,-500.0,0.00019589,3]
[348989964,1736921435096,-559.65829911,0.00019589,3]
[348989966,1736921435106,-500.0,0.00019589,3]
[348989968,1736921435116,-500.0,0.00019589,3]
[348989970,1736921435128,-500.0,0.00019589,3]
[348989972,1736921435137,-500.0,0.00019589,3]
[348989974,1736921435147,-500.0,0.00019589,3]
[348989976,1736921435157,-500.0,0.00019589,3]
[348989978,1736921435166,-500.0,0.00019589,3]
[348989980,1736921435176,-151.0,0.00019589,2]
[348989982,1736921435186,-511.89,0.00019589,3]
[348989984,1736921435195,-1246.44,0.00019589,3]
[348989986,1736921435204,-547.83,0.00019589,3]
[348989988,1736921435215,-500.0,0.00019589,3]
[348989990,1736921435225,-500.0,0.00019589,3]
[348989992,1736921435236,-151.0,0.00019589,2]
[348989994,1736921435246,-151.0,0.00019589,2]
[348989996,1736921435255,-356.008,0.00019589,2]
[348989997,1736921435265,-997.26,0.00019589,3]
[348989999,1736921435275,-356.008,0.00019589,2]
[348990001,1736921435285,-500.0,0.00019589,3]
[348990003,1736921435295,-151.0,0.00019589,2]
[348990005,1736921435304,-151.0,0.00019589,2]
[348990007,1736921435315,-684.73,0.00019589,3]
[348990009,1736921435325,-165.712944,0.00019589,2]
[348990011,1736921435335,-165.712944,0.00019589,2]
[348990013,1736921435345,-1337.81,0.00019589,3]
[348990015,1736921435355,-500.0,0.00019589,3]
[348990017,1736921435364,-500.0,0.00019589,3]
[348990019,1736921435378,-1509.14,0.00019589,2]
[348990021,1736921435388,-500.0,0.00019589,3]
[348990022,1736921435397,-804.34,0.00019589,3]
[348990024,1736921435407,-704.35033199,0.00019615,2]
[348990026,1736921435417,-163.564247,0.00019726,2]
[348990028,1736921435427,-163.564247,0.00019726,2]
[348990030,1736921435436,-151.0,0.00019726,2]
[348990032,1736921435446,-251.053135,0.00019726,2]
[348990034,1736921435456,-500.0,0.00019726,3]
[348990036,1736921435467,-151.0,0.00019726,2]
[348990038,1736921435477,-151.0,0.00019726,2]
[348990039,1736921435487,-500.0,0.00019726,3]
[348990040,1736921435497,-151.0,0.00019726,2]
[348990041,1736921435507,-151.0,0.00019726,2]
[348990043,1736921435517,-500.0,0.00019726,3]
[348990044,1736921435526,-357.758411,0.00019726,2]
[348990046,1736921435536,-357.758411,0.00019726,2]
[348990048,1736921435546,-534.77335074,0.00019726,2]
[348990050,1736921435555,-500.0,0.00019726,3]
[348990051,1736921435565,-151.0,0.00019726,2]
[348990053,1736921435575,-196.115436,0.00019726,2]
[348990055,1736921435585,-196.115436,0.00019726,2]
[348990056,1736921435595,-539.21,0.00019726,3]
[348990058,1736921435605,-350.613162,0.00019726,2]
[348990060,1736921435615,-202.127438,0.00019726,2]
[348990062,1736921435628,-350.613162,0.00019726,2]
[348990064,1736921435637,-256.454363,0.00019726,2]
[348990066,1736921435650,-256.454363,0.00019726,2]
[348990068,1736921435665,-151.0,0.00019726,2]
[348990070,1736921435675,-4985.93,0.00019726,3]
[348990072,1736921435685,-621.00958163,0.00019726,3]
[348990074,1736921435696,-500.0,0.00019726,3]
[348990076,1736921435706,-500.0,0.00019726,3]
[348990078,1736921435715,-500.0,0.00019726,3]
[348990079,1736921435725,-257.16607704,0.00019726,3]
[348990080,1736921435734,-500.0,0.00019726,3]
[348990081,1736921435743,-500.0,0.00019726,3]
[348990082,1736921435752,-500.0,0.00019726,3]
[348990083,1736921435762,-500.0,0.00019726,3]
[348990084,1736921435772,-151.0,0.00019726,2]
[348990085,1736921435781,-511.89,0.00019726,3]
[348990086,1736921435790,-1246.44,0.00019726,3]
[348990087,1736921435799,-547.83,0.00019726,3]
[348990088,1736921435808,-500.0,0.00019726,3]
[348990089,1736921435819,-500.0,0.00019726,3]
[348990090,1736921435832,-151.0,0.00019726,2]
[348990091,1736921435845,-151.0,0.00019726,2]
[348990092,1736921435857,-356.008,0.00019726,2]
[348990093,1736921435869,-997.26,0.00019726,3]
[348990094,1736921435881,-356.008,0.00019726,2]
[348990095,1736921435891,-500.0,0.00019726,3]
[348990096,1736921435901,-151.0,0.00019726,2]
[348990097,1736921435913,-152.342217,0.00019726,2]
[348990098,1736921435925,-684.73,0.00019726,3]
[348990099,1736921435937,-165.712944,0.00019726,2]
[348990100,1736921435949,-165.712944,0.00019726,2]
[348990101,1736921435961,-1337.81,0.00019726,3]
[348990102,1736921435971,-500.0,0.00019726,3]
[348990103,1736921435983,-500.0,0.00019726,3]
[348990104,1736921435994,-1509.14,0.00019726,2]
[348990105,1736921436008,-500.0,0.00019726,3]
[348990106,1736921436020,-804.34,0.00019726,3]
[348990107,1736921436030,-420.0,0.00019774,2]
[348990108,1736921436042,-251.7643915,0.00019799,2]
[348990109,1736921436054,-154.6734645,0.000198,2]
[348990110,1736921436065,-500.0,0.00019827,2]
[348990111,1736921436079,-500.0,0.00019827,2]
[348990112,1736921436090,-500.59803229,0.00019827,2]
[348990113,1736921436101,-151.0,0.00019863,2]
[348990114,1736921436112,-500.0,0.00019863,3]
[348990115,1736921436123,-183.081458,0.00019863,2]
[348990116,1736921436135,-183.081458,0.00019863,2]
[348990117,1736921436146,-151.0,0.00019863,2]
[348990118,1736921436157,-201.45359603,0.00019863,3]
[348990119,1736921436168,-151.0,0.00019863,2]
[348990120,1736921436179,-151.0,0.00019863,2]
[348990121,1736921436191,-266.54251737,0.00019863,3]
[348990122,1736921436203,-357.758411,0.00019863,2]
[348990123,1736921436213,-357.758411,0.00019863,2]
[348990124,1736921436224,-500.0,0.00019863,3]
[348990125,1736921436235,-151.0,0.00019863,2]
[348990126,1736921436245,-196.115436,0.00019863,2]
[348990127,1736921436255,-196.115436,0.00019863,2]
[348990128,1736921436264,-350.613162,0.00019863,2]
[348990129,1736921436276,-539.21,0.00019863,3]
[348990130,1736921436286,-350.613162,0.00019863,2]
[348990131,1736921436297,-256.454363,0.00019863,2]
[348990132,1736921436308,-256.454363,0.00019863,2]
[348990133,1736921436319,-151.0,0.00019863,2]
[348990134,1736921436330,-4985.93,0.00019863,3]
[348990135,1736921436342,-500.0,0.00019863,3]
[348990136,1736921436352,-500.0,0.00019863,3]
[348990137,1736921436363,-500.0,0.00019863,3]
[348990138,1736921436375,-399.66893236,0.00019863,3]
[348990139,1736921436387,-500.0,0.00019863,3]
[348990140,1736921436398,-500.0,0.00019863,3]
[348990141,1736921436410,-500.0,0.00019863,3]
[348990142,1736921436420,-151.0,0.00019863,2]
[348990143,1736921436432,-511.89,0.00019863,3]
[348990144,1736921436444,-547.83,0.00019863,3]
[348990145,1736921436455,-1246.44,0.00019863,3]
[348990146,1736921436465,-500.0,0.00019863,3]
[348990147,1736921436475,-500.0,0.00019863,3]
[348990148,1736921436486,-151.0,0.00019863,2]
[348990149,1736921436496,-151.0,0.00019863,2]
[348990150,1736921436506,-356.008,0.00019863,2]
[348990151,1736921436517,-997.26,0.00019863,3]
[348990152,1736921436528,-356.008,0.00019863,2]
[348990153,1736921436540,-500.0,0.00019863,3]
[348990154,1736921436553,-151.0,0.00019863,2]
[348990155,1736921436564,-684.73,0.00019863,3]
[348990156,1736921436576,-165.712944,0.00019863,2]
[348990157,1736921436587,-165.712944,0.00019863,2]
[348990158,1736921436597,-1337.81,0.00019863,3]
[348990159,1736921436607,-499.1135258,0.00019863,3]
[348990160,1736921436618,-526.99200271,0.00019863,3]
[348990161,1736921436632,-1509.14,0.00019863,2]
[348990162,1736921436643,-500.0,0.00019863,3]
[348990163,1736921436657,-804.34,0.00019863,3]
[348990164,1736921436670,-9677.42369374,0.00019883,2]
[348990165,1736921436681,-208.47439695,0.000199,2]
[348990166,1736921436691,-151.0,0.00019963,2]
[348990167,1736921436702,-500.82831799,0.00019987,2]
[348990168,1736921436712,-909.1158227,0.00019999,2]
[348990169,1736921436723,-220.0,0.0002,7]
[348990170,1736921436734,-163.564247,0.0002,2]
[348990171,1736921436744,-163.564247,0.0002,2]
[348990172,1736921436755,-3427.0,0.0002,2]
[348990173,1736921436766,-151.0,0.0002,2]
[348990174,1736921436776,-500.0,0.0002,3]
[348990175,1736921436787,-183.081458,0.0002,2]
[348990176,1736921436798,-183.081458,0.0002,2]
[348990177,1736921436809,-151.0,0.0002,2]
[348990178,1736921436819,-151.0,0.0002,2]
[348990179,1736921436830,-245.737138,0.0002,2]
[348990180,1736921436840,-357.758411,0.0002,2]
[348990181,1736921436851,-357.758411,0.0002,2]
[348990182,1736921436861,-151.0,0.0002,2]
[348990183,1736921436871,-500.0,0.0002,3]
[348990184,1736921436881,-196.115436,0.0002,2]
[348990185,1736921436893,-196.115436,0.0002,2]
[348990186,1736921436904,-350.613162,0.0002,2]
[348990187,1736921436915,-539.21,0.0002,3]
[348990188,1736921436926,-350.613162,0.0002,2]
[348990189,1736921436937,-256.454363,0.0002,2]
[348990190,1736921436948,-256.454363,0.0002,2]
[348990191,1736921436958,-151.0,0.0002,2]
[348990192,1736921436968,-4985.93,0.0002,3]
[348990193,1736921436979,-500.0,0.0002,3]
[348990194,1736921436989,-500.0,0.0002,3]
[348990195,1736921437000,-500.0,0.0002,3]
[348990196,1736921437010,-377.15557896,0.0002,3]
[348990197,1736921437021,-500.0,0.0002,3]
[348990198,1736921437031,-239.78502638,0.0002,3]
[348990199,1736921437042,-151.0,0.0002,2]
[348990200,1736921437052,-511.89,0.0002,3]
[348990201,1736921437063,-547.83,0.0002,3]
[348990202,1736921437074,-470.0,0.0002,3]
[348990203,1736921437085,-500.0,0.0002,3]
[348990204,1736921437096,-1246.44,0.0002,3]
[348990205,1736921437106,-151.0,0.0002,2]
[348990206,1736921437116,-210.24935,0.0002,2]
[348990207,1736921437127,-356.008,0.0002,2]
[348990208,1736921437138,-356.008,0.0002,2]
[348990209,1736921437148,-997.26,0.0002,3]
[348990210,1736921437159,-500.0,0.0002,3]
[348990211,1736921437170,-151.0,0.0002,2]
[348990212,1736921437181,-684.73,0.0002,3]
[348990213,1736921437191,-165.712944,0.0002,2]
[348990214,1736921437201,-165.712944,0.0002,2]
[348990215,1736921437211,-1337.81,0.0002,3]
[348990216,1736921437317,-1509.14,0.0002,2]
[348990217,1736921437354,-500.0,0.0002,3]
[348990218,1736921437364,-804.34,0.0002,3]
[348990219,1736921437373,-216.34776261,0.00020024,2]
[348990220,1736921437384,-500.0,0.00020136,3]
[348990221,1736921437394,-500.0,0.00020136,3]
[348990222,1736921437403,-539.21,0.00020136,3]
[348990223,1736921437413,-4985.93,0.00020136,3]
[348990224,1736921437422,-500.0,0.00020136,3]
[348990226,1736921437431,-220.2492049,0.00020136,3]
[348990228,1736921437440,-500.0,0.00020136,3]
[348990230,1736921437450,-233.25678266,0.00020136,3]
[348990231,1736921437459,-151.0,0.00020136,2]
[348990233,1736921437469,-511.89,0.00020136,3]
[348990235,1736921437479,-547.83,0.00020136,3]
[348990237,1736921437489,-500.0,0.00020136,3]
[348990239,1736921437499,-1246.44,0.00020136,3]
[348990241,1736921437508,-997.26,0.00020136,3]
[348990243,1736921437518,-500.0,0.00020136,3]
[348990245,1736921437528,-151.0,0.00020136,2]
[348990247,1736921437538,-684.73,0.00020136,3]
[348990249,1736921437548,-165.712944,0.00020136,2]
[348990251,1736921437558,-165.712944,0.00020136,2]
[348990253,1736921437567,-1337.81,0.00020136,3]
[348990254,1736921437576,-1509.14,0.00020136,2]
[348990256,1736921437586,-500.0,0.00020136,3]
[348990258,1736921437595,-804.34,0.00020136,3]
[348990260,1736921437604,-252.216,0.00020157,2]
[348990262,1736921437613,-150.0,0.00020157,2]
[348990264,1736921437623,-2071.0,0.00020157,2]
[348990266,1736921437632,-536.0,0.00020157,2]
[348990268,1736921437642,-2315.0,0.00020157,2]
[348990270,1736921437653,-356.008,0.00020157,2]
[348990272,1736921437666,-356.008,0.00020157,2]
[348990274,1736921437675,-208.47439689,0.00020208,2]
[348990276,1736921437685,-287.539559,0.00020208,2]
[348990278,1736921437695,-151.0,0.00020208,2]
[348990280,1736921437704,-183.081458,0.00020208,2]
[348990282,1736921437714,-183.081458,0.00020208,2]
[348990283,1736921437723,-163.564247,0.00020273,2]
[348990285,1736921437734,-163.564247,0.00020273,2]
[348990287,1736921437744,-151.0,0.00020273,2]
[348990289,1736921437753,-393.03282519,0.00020273,3]
[348990291,1736921437763,-151.0,0.00020273,2]
[348990293,1736921437773,-151.0,0.00020273,2]
[348990295,1736921437783,-357.758411,0.00020273,2]
[348990297,1736921437794,-357.758411,0.00020273,2]
[348990299,1736921437803,-151.0,0.00020273,2]
[348990301,1736921437812,-323.514978,0.00020273,3]
[348990303,1736921437821,-196.115436,0.00020273,2]
[348990305,1736921437831,-196.115436,0.00020273,2]
[348990307,1736921437840,-350.613162,0.00020273,2]
[348990308,1736921437850,-350.613162,0.00020273,2]
[348990309,1736921437859,-539.21,0.00020273,3]
[348990310,1736921437868,-256.454363,0.00020273,2]
[348990311,1736921437877,-256.454363,0.00020273,2]
[348990312,1736921437886,-151.0,0.00020273,2]
[348990313,1736921437895,-4985.93,0.00020273,3]
[348990314,1736921437904,-500.0,0.00020273,3]
[348990315,1736921437913,-500.0,0.00020273,3]
[348990316,1736921437923,-511.89,0.00020273,3]
[348990317,1736921437933,-547.83,0.00020273,3]
[348990318,1736921437943,-500.0,0.00020273,3]
[348990319,1736921437952,-151.0,0.00020273,2]
[348990320,1736921437962,-1246.44,0.00020273,3]
[348990321,1736921437971,-500.0,0.00020273,3]
[348990322,1736921437981,-997.26,0.00020273,3]
[348990323,1736921437991,-684.73,0.00020273,3]
[348990324,1736921438000,-1337.81,0.00020273,3]
[348990325,1736921438009,-1509.14,0.00020273,2]
[348990326,1736921438019,-500.0,0.00020273,3]
[348990327,1736921438028,-804.34,0.00020273,3]
[348990328,1736921438037,-154.00934838,0.00020289,2]